fUSD/lending_fUSD_20250422
["ID","MTS","AMOUNT","RATE_DAILY","PERIOD"]
[358614981,1745311994688,-605.29,0.00055342,120]
[358614982,1745311994722,-519.76023524,0.00055342,120]
[358614983,1745311994756,-500.0,0.00055342,120]
[358614984,1745311994790,-999.0,0.00055342,120]
[358614985,1745311994821,-500.0,0.00055342,120]
[358614986,1745311994852,-500.0,0.00055342,120]
[358614987,1745311994889,-500.0,0.00055342,120]
[358614988,1745311994920,-500.0,0.00055342,120]
[358614989,1745311994955,-500.0,0.00055342,60]
[358614990,1745311994989,-523.03,0.00055342,120]
[358614991,1745311995023,-500.0,0.00055342,120]
[358614992,1745311995056,-500.0,0.00055342,120]
[358614993,1745311995088,-500.0,0.00055342,120]
[358614994,1745311995119,-500.0,0.00055342,120]
[358614995,1745311995151,-500.0,0.00055342,120]
[358614996,1745311995183,-500.0,0.00055342,120]
[358614997,1745311995216,-500.0,0.00055342,120]
[358614998,1745311995246,-500.0,0.00055342,120]
[358614999,1745311995275,-500.0,0.00055342,120]
[358615000,1745311995305,-500.0,0.00055342,120]
[358615001,1745311995334,-500.0,0.00055342,56]
[358615002,1745311995363,-500.0,0.00055342,120]
[358615003,1745311995392,-83185.02,0.00055342,120]
[358615004,1745311995421,-500.0,0.00055342,120]
[358615005,1745311995451,-500.0,0.00055342,120]
[358615006,1745311995479,-273.21047026,0.00055345,120]
[358615007,1745311995509,-150.0,0.00055347,120]
[358615008,1745311995540,-150.0,0.0005535,120]
[358615009,1745311995571,-900.0,0.00055357,120]
[358615010,1745311995601,-150.0,0.0005536,120]
[358615011,1745311995630,-500.0,0.00055361,120]
[358615012,1745311995660,-150.0,0.00055371,120]
[358615013,1745311995690,-273.21047026,0.00055377,120]
[358615014,1745311995722,-900.0,0.00055382,120]
[358615015,1745311995754,-150.0,0.00055393,120]
[358615016,1745311995787,-167.3,0.000554,60]
[358615017,1745311995817,-150.0,0.00055408,120]
[358615018,1745311995847,-273.21047026,0.0005541,120]
[358615019,1745311995882,-900.0,0.0005541,120]
[358615020,1745311995913,-150.0,0.00055435,120]
[358615021,1745311995942,-150.0,0.00055435,120]
[358615022,1745311995975,-273.21047026,0.00055442,120]
[358615023,1745311996005,-150.0,0.00055454,120]
[358615024,1745311996036,-150.0,0.00055458,120]
[358615025,1745311996067,-2100.0,0.0005546,120]
[358615026,1745311996099,-273.21047026,0.00055474,120]
[358615027,1745311996128,-150.0,0.00055476,120]
[358615028,1745311996158,-150.0,0.00055478,120]
[358615029,1745311996187,-2100.0,0.00055481,120]
[358615030,1745311996217,-500.0,0.00055489,120]
[358615031,1745311996245,-150.0,0.000555,120]
[358615032,1745311996274,-900.0,0.000555,120]
[358615033,1745311996302,-273.21047026,0.00055507,120]
[358615034,1745311996330,-150.0,0.00055521,120]
[358615035,1745311996358,-273.21047026,0.00055539,120]
[358615036,1745311996387,-150.0,0.00055545,120]
[358615037,1745311996415,-150.0,0.00055549,120]
[358615038,1745311996444,-150.0,0.00055564,120]
[358615039,1745311996474,-150.0,0.00055564,120]
[358615040,1745311996506,-150.0,0.00055568,120]
[358615041,1745311996542,-273.21047026,0.00055571,120]
[358615042,1745311996573,-511.44262075,0.00055589,120]
[358615043,1745311996604,-273.21047026,0.00055604,120]
[358615044,1745311996765,-150.0,0.00055606,120]
[358615045,1745311996795,-150.0,0.00055613,120]
[358615046,1745311996827,-160.916526,0.00055616,120]
[358615047,1745311996856,-179.524932,0.00055616,120]
[358615048,1745311996887,-151.0,0.00055616,120]
[358615049,1745311996916,-158.533311,0.00055616,120]
[358615050,1745311996946,-158.533311,0.00055616,120]
[358615051,1745311996976,-500.0,0.00055616,120]
[358615052,1745311997007,-500.0,0.00055616,120]
[358615053,1745311997037,-500.0,0.00055616,120]
[358615054,1745311997066,-530.36,0.00055616,120]
[358615055,1745311997096,-500.0,0.00055616,120]
[358615056,1745311997126,-528.07705481,0.00055616,120]
[358615057,1745311997155,-500.0,0.00055616,120]
[358615058,1745311997184,-500.0,0.00055616,120]
[358615059,1745311997214,-352.77096367,0.00055616,60]
[358615060,1745311997244,-567.34752046,0.00055616,120]
[358615061,1745311997274,-500.0,0.00055616,120]
[358615062,1745311997304,-500.0,0.00055616,120]
[358615063,1745311997333,-500.0,0.00055616,120]
[358615064,1745311997364,-500.0,0.00055616,120]
[358615065,1745311997393,-500.0,0.00055616,120]
[358615066,1745311997424,-500.0,0.00055616,120]
[358615067,1745311997453,-500.0,0.00055616,120]
[358615068,1745311997482,-500.0,0.00055616,120]
[358615069,1745311997510,-500.0,0.00055616,120]
[358615070,1745311997538,-500.0,0.00055616,120]
[358615071,1745311997567,-823.18,0.00055616,120]
[358615072,1745311997595,-500.0,0.00055616,120]
[358615073,1745311997624,-500.0,0.00055616,120]
[358615074,1745311997652,-500.0,0.00055616,120]
[358615075,1745311997680,-500.0,0.00055616,120]
[358615076,1745311997709,-500.0,0.00055616,120]
[358615077,1745311997737,-500.0,0.00055616,120]
[358615078,1745311997766,-500.0,0.00055616,120]
[358615079,1745311997795,-500.0,0.00055616,120]
[358615080,1745311997823,-500.0,0.00055616,120]
[358615081,1745311997852,-500.0,0.00055616,120]
[358615082,1745311997883,-503.12,0.00055616,120]
[358615083,1745311997913,-500.0,0.00055616,120]
[358615084,1745311997942,-508.50073845,0.00055616,120]
[358615085,1745311997973,-500.0,0.00055616,120]
[358615086,1745311998003,-500.0,0.00055616,120]
[358615087,1745311998033,-500.0,0.00055616,120]
[358615088,1745311998064,-500.0,0.00055616,120]
[358615089,1745311998093,-500.0,0.00055616,120]
[358615090,1745311998123,-500.0,0.00055616,120]
[358615091,1745311998152,-500.0,0.00055616,120]
[358615092,1745311998183,-531.85736245,0.00055616,120]
[358615093,1745311998212,-500.0,0.00055616,120]
[358615094,1745311998242,-608.49074244,0.00055616,120]
[358615095,1745311998272,-500.0,0.00055616,120]
[358615096,1745311998302,-500.0,0.00055616,120]
[358615097,1745311998331,-500.0,0.00055616,120]
[358615098,1745311998361,-422.48577488,0.00055616,120]
[358615099,1745311998392,-500.0,0.00055616,120]
[358615100,1745311998421,-500.0,0.00055616,30]
[358615101,1745311998450,-409.20365059,0.00055616,120]
[358615102,1745311998483,-500.0,0.00055616,120]
[358615103,1745311998514,-561.61,0.00055616,120]
[358615104,1745311998544,-500.0,0.00055616,120]
[358615105,1745311998575,-500.0,0.00055616,120]
[358615106,1745311998606,-500.0,0.00055616,120]
[358615107,1745311998635,-500.0,0.00055616,120]
[358615108,1745311998665,-500.0,0.00055616,120]
[358615109,1745311998696,-500.0,0.00055616,120]
[358615110,1745311998728,-500.0,0.00055616,120]
[358615111,1745311998759,-852.99,0.00055616,120]
[358615112,1745311998795,-1000.0,0.00055616,120]
[358615113,1745311998829,-500.0,0.00055616,120]
[358615114,1745311998861,-500.0,0.00055616,120]
[358615115,1745311998894,-500.0,0.00055616,120]
[358615116,1745311998926,-13988.48,0.00055616,120]
[358615117,1745311998959,-500.0,0.00055616,120]
[358615118,1745311998993,-500.0,0.00055616,120]
[358615119,1745311999028,-5038.92,0.00055616,120]
[358615120,1745311999064,-500.0,0.00055616,120]
[358615121,1745311999097,-500.0,0.00055616,120]
[358615122,1745311999129,-500.0,0.00055616,120]
[358615123,1745311999161,-528.49,0.00055616,120]
[358615124,1745311999193,-500.0,0.00055616,120]
[358615125,1745311999225,-3562.71,0.00055616,120]
[358615126,1745311999256,-500.0,0.00055616,120]
[358615127,1745311999287,-1681.51,0.00055616,120]
[358615128,1745311999316,-500.0,0.00055616,120]
[358615129,1745311999347,-500.0,0.00055616,120]
[358615130,1745311999379,-500.0,0.00055616,120]
[358615131,1745311999410,-500.0,0.00055616,120]
[358615132,1745311999440,-500.0,0.00055616,120]
[358615133,1745311999471,-500.0,0.00055616,120]
[358615134,1745311999501,-500.0,0.00055616,120]
[358615135,1745311999531,-1000.0,0.00055616,120]
[358615136,1745311999564,-500.0,0.00055616,120]
[358615137,1745311999603,-500.0,0.00055616,120]
[358615138,1745311999635,-500.0,0.00055616,120]
[358615139,1745311999815,-500.0,0.00055616,120]
[358615140,1745311999847,-500.0,0.00055616,120]
[358615141,1745311999877,-855.36,0.00055616,120]
[358615142,1745311999907,-500.0,0.00055616,120]
[358615143,1745311999938,-500.0,0.00055616,120]
[358615144,1745311999968,-500.0,0.00055616,120]
[358615145,1745312000004,-500.0,0.00055616,118]
[358615146,1745312000035,-299.52,0.00055616,120]
[358615147,1745312000065,-500.0,0.00055616,120]
[358615148,1745312000096,-500.0,0.00055616,120]
[358615149,1745312000126,-500.0,0.00055616,120]
[358615150,1745312000157,-500.0,0.00055616,120]
[358615151,1745312000189,-500.0,0.00055616,120]
[358615152,1745312000222,-500.0,0.00055616,120]
[358615153,1745312000253,-500.0,0.00055616,120]
[358615154,1745312000283,-500.0,0.00055616,120]
[358615155,1745312000315,-500.0,0.00055616,120]
[358615156,1745312000348,-988.96,0.00055616,120]
[358615157,1745312000380,-500.0,0.00055616,120]
[358615158,1745312000413,-500.0,0.00055616,120]
[358615159,1745312000444,-500.0,0.00055616,120]
[358615160,1745312000476,-500.0,0.00055616,120]
[358615161,1745312000506,-500.0,0.00055616,120]
[358615162,1745312000536,-500.0,0.00055616,120]
[358615163,1745312000565,-500.0,0.00055616,120]
[358615164,1745312000600,-500.0,0.00055616,120]
[358615165,1745312000630,-500.0,0.00055616,120]
[358615166,1745312000660,-500.0,0.00055616,120]
[358615167,1745312000692,-524.35,0.00055616,120]
[358615168,1745312000723,-500.0,0.00055616,120]
[358615169,1745312000754,-500.0,0.00055616,120]
[358615170,1745312000785,-500.0,0.00055616,120]
[358615171,1745312000818,-500.0,0.00055616,120]
[358615172,1745312000848,-500.0,0.00055616,120]
[358615173,1745312000879,-500.0,0.00055616,120]
[358615174,1745312000909,-500.0,0.00055616,120]
[358615175,1745312000939,-500.0,0.00055616,120]
[358615176,1745312000969,-795.78,0.00055616,120]
[358615177,1745312000999,-155.23655943,0.00055616,120]
[358615178,1745312001029,-529.95228789,0.00055616,120]
[358615179,1745312001060,-500.0,0.00055616,120]
[358615180,1745312001089,-500.0,0.00055616,120]
[358615181,1745312001118,-500.0,0.00055616,120]
[358615182,1745312001146,-500.0,0.00055616,120]
[358615183,1745312001175,-500.0,0.00055616,120]
[358615184,1745312001203,-500.0,0.00055616,120]
[358615185,1745312001232,-904.36,0.00055616,120]
[358615186,1745312001262,-1191.65,0.00055616,120]
[358615187,1745312001293,-500.0,0.00055616,120]
[358615188,1745312001333,-605.29,0.00055616,120]
[358615189,1745312001367,-500.0,0.00055616,120]
[358615190,1745312001398,-999.0,0.00055616,120]
[358615191,1745312001429,-500.0,0.00055616,120]
[358615192,1745312001459,-500.0,0.00055616,120]
[358615193,1745312001489,-500.0,0.00055616,120]
[358615194,1745312001518,-500.0,0.00055616,120]
[358615195,1745312001549,-500.0,0.00055616,60]
[358615196,1745312001580,-523.03,0.00055616,120]
[358615197,1745312001613,-500.0,0.00055616,120]
[358615198,1745312001645,-500.0,0.00055616,120]
[358615199,1745312001678,-500.0,0.00055616,120]
[358615200,1745312001707,-500.0,0.00055616,120]
[358615201,1745312001738,-500.0,0.00055616,120]
[358615202,1745312001770,-151.0,0.00055616,120]
[358615203,1745312001806,-500.0,0.00055616,120]
[358615204,1745312001838,-500.0,0.00055616,120]
[358615205,1745312001869,-500.0,0.00055616,120]
[358615206,1745312001916,-500.0,0.00055616,120]
[358615207,1745312001964,-500.0,0.00055616,120]
[358615208,1745312002002,-500.0,0.00055616,56]
[358615209,1745312002044,-500.0,0.00055616,120]
[358615210,1745312002088,-2367.21,0.00055616,120]
[358615211,1745312002129,-83185.02,0.00055616,120]
[358615212,1745312002164,-500.0,0.00055616,120]
[358615213,1745312002205,-500.0,0.00055616,120]
[358615214,1745312002244,-150.0,0.00055628,120]
[358615215,1745312002283,-273.21047026,0.00055636,120]
[358615216,1745312002321,-150.0,0.00055643,120]
[358615217,1745312002356,-150.0,0.00055649,120]
[358615218,1745312002395,-273.21047026,0.00055668,120]
[358615219,1745312002439,-150.0,0.00055679,120]
[358615220,1745312002478,-150.0,0.00055681,120]
[358615221,1745312002524,-150.0,0.00055692,120]
[358615222,1745312002566,-150.0,0.00055692,120]
[358615223,1745312002602,-273.21047026,0.00055701,120]
[358615224,1745312002637,-273.21047026,0.00055733,120]
[358615225,1745312002678,-150.0,0.00055735,120]
[358615226,1745312002712,-150.0,0.00055737,120]
[358615227,1745312002748,-150.0,0.00055749,120]
[358615228,1745312002789,-150.0,0.00055756,120]
[358615229,1745312002827,-273.21047026,0.00055766,120]
[358615230,1745312002867,-549.29789424,0.00055777,120]
[358615231,1745312002908,-150.0,0.00055777,120]
[358615232,1745312002952,-150.0,0.00055789,120]
[358615233,1745312002991,-273.21047026,0.00055798,120]
[358615234,1745312003032,-274.0,0.000558,120]
[358615235,1745312003069,-150.0,0.00055817,120]
[358615236,1745312003108,-150.0,0.0005582,120]
[358615237,1745312003144,-150.0,0.0005582,120]
[358615238,1745312003181,-273.21047026,0.0005583,120]
[358615239,1745312003216,-150.0,0.00055831,120]
[358615240,1745312003252,-900.0,0.00055843,120]
[358615241,1745312003288,-150.0,0.00055863,120]
[358615242,1745312003323,-273.21047026,0.00055863,120]
[358615243,1745312003359,-150.0,0.00055863,120]
[358615244,1745312003395,-150.0,0.00055884,120]
[358615245,1745312003432,-150.0,0.00055885,120]
[358615246,1745312003467,-553.03265563,0.0005589,120]
[358615247,1745312003503,-152.186648,0.0005589,120]
[358615248,1745312003539,-500.0,0.0005589,120]
[358615249,1745312003577,-500.0,0.0005589,120]
[358615250,1745312003614,-500.0,0.0005589,120]
[358615251,1745312003649,-530.36,0.0005589,120]
[358615252,1745312003683,-500.0,0.0005589,120]
[358615253,1745312003716,-500.0,0.0005589,120]
[358615254,1745312003750,-500.0,0.0005589,120]
[358615255,1745312003785,-500.0,0.0005589,120]
[358615256,1745312003822,-500.0,0.0005589,120]
[358615257,1745312003856,-500.0,0.0005589,120]
[358615258,1745312003891,-500.0,0.0005589,120]
[358615259,1745312003925,-500.0,0.0005589,120]
[358615260,1745312003958,-500.0,0.0005589,120]
[358615261,1745312003991,-500.0,0.0005589,120]
[358615262,1745312004031,-500.0,0.0005589,120]
[358615263,1745312004070,-500.0,0.0005589,120]
[358615264,1745312004108,-500.0,0.0005589,120]
[358615265,1745312004147,-823.18,0.0005589,120]
[358615266,1745312004187,-500.0,0.0005589,120]
[358615267,1745312004225,-500.0,0.0005589,120]
[358615268,1745312004264,-500.0,0.0005589,120]
[358615269,1745312004302,-500.0,0.0005589,120]
[358615270,1745312004340,-194.71019381,0.0005589,120]
[358615271,1745312004381,-500.0,0.0005589,120]
[358615272,1745312004421,-500.0,0.0005589,120]
[358615273,1745312004461,-500.0,0.0005589,120]
[358615274,1745312004502,-500.0,0.0005589,120]
[358615275,1745312004541,-503.12,0.0005589,120]
[358615276,1745312004843,-500.0,0.0005589,120]
[358615277,1745312004888,-400.0,0.0005589,120]
[358615278,1745312004927,-500.0,0.0005589,120]
[358615279,1745312004966,-450.93478259,0.0005589,120]
[358615280,1745312005005,-500.0,0.0005589,120]
[358615281,1745312005043,-500.0,0.0005589,120]
[358615282,1745312005078,-500.0,0.0005589,120]
[358615283,1745312005112,-500.0,0.0005589,120]
[358615284,1745312005145,-500.0,0.0005589,120]
[358615285,1745312005178,-500.0,0.0005589,120]
[358615286,1745312005210,-500.0,0.0005589,120]
[358615287,1745312005243,-500.0,0.0005589,120]
[358615288,1745312005275,-500.0,0.0005589,120]
[358615289,1745312005310,-500.0,0.0005589,30]
[358615290,1745312005342,-151.0,0.0005589,120]
[358615291,1745312005375,-500.0,0.0005589,120]
[358615292,1745312005407,-154.412998,0.0005589,120]
[358615293,1745312005441,-154.412998,0.0005589,120]
[358615294,1745312005476,-500.0,0.0005589,120]
[358615295,1745312005510,-500.0,0.0005589,120]
[358615296,1745312005544,-500.0,0.0005589,120]
[358615297,1745312005578,-525.782871,0.0005589,120]
[358615298,1745312005619,-500.0,0.0005589,120]
[358615299,1745312005660,-525.782871,0.0005589,120]
[358615300,1745312005697,-500.0,0.0005589,120]
[358615301,1745312005734,-500.0,0.0005589,120]
[358615302,1745312005771,-500.0,0.0005589,120]
[358615303,1745312005806,-852.99,0.0005589,120]
[358615304,1745312005841,-1000.0,0.0005589,120]
[358615305,1745312005876,-500.0,0.0005589,120]
[358615306,1745312005912,-500.0,0.0005589,120]
[358615307,1745312005948,-13988.48,0.0005589,120]
[358615308,1745312005987,-500.0,0.0005589,120]
[358615309,1745312006022,-500.0,0.0005589,120]
[358615310,1745312006056,-5038.92,0.0005589,120]
[358615311,1745312006092,-500.0,0.0005589,120]
[358615312,1745312006128,-500.0,0.0005589,120]
[358615313,1745312006162,-151.0,0.0005589,120]
[358615314,1745312006197,-500.0,0.0005589,120]
[358615315,1745312006233,-161.918366,0.0005589,120]
[358615316,1745312006266,-528.49,0.0005589,120]
[358615317,1745312006300,-500.0,0.0005589,120]
[358615318,1745312006332,-3562.71,0.0005589,120]
[358615319,1745312006366,-500.0,0.0005589,120]
[358615320,1745312006401,-1681.51,0.0005589,120]
[358615321,1745312006436,-215.00657066,0.0005589,120]
[358615322,1745312006471,-500.0,0.0005589,120]
[358615323,1745312006508,-323.14116404,0.0005589,120]
[358615324,1745312006542,-500.0,0.0005589,120]
[358615325,1745312006576,-500.0,0.0005589,120]
[358615326,1745312006611,-500.0,0.0005589,120]
[358615327,1745312006646,-500.0,0.0005589,120]
[358615328,1745312006681,-1000.0,0.0005589,120]
[358615329,1745312006717,-500.0,0.0005589,120]
[358615330,1745312006750,-500.0,0.0005589,120]
[358615331,1745312006783,-459.6382468,0.0005589,120]
[358615332,1745312006822,-500.0,0.0005589,120]
[358615333,1745312006856,-637.64916832,0.0005589,120]
[358615334,1745312006895,-855.36,0.0005589,120]
[358615335,1745312006937,-500.0,0.0005589,120]
[358615336,1745312006980,-232.0123903,0.0005589,120]
[358615337,1745312007020,-500.0,0.0005589,120]
[358615338,1745312007064,-500.0,0.0005589,118]
[358615339,1745312007105,-495.873294,0.0005589,120]
[358615340,1745312007147,-500.0,0.0005589,120]
[358615341,1745312007187,-500.0,0.0005589,120]
[358615342,1745312007228,-495.873294,0.0005589,120]
[358615343,1745312007269,-500.0,0.0005589,120]
[358615344,1745312007309,-500.0,0.0005589,120]
[358615345,1745312007356,-500.0,0.0005589,120]
[358615346,1745312007398,-410.54923605,0.0005589,120]
[358615347,1745312007438,-538.92802661,0.0005589,120]
[358615348,1745312007478,-500.0,0.0005589,120]
[358615349,1745312007520,-500.0,0.0005589,120]
[358615350,1745312007561,-988.96,0.0005589,120]
[358615351,1745312007603,-500.0,0.0005589,120]
[358615352,1745312007644,-173.19336972,0.0005589,120]
[358615353,1745312007687,-500.0,0.0005589,120]
[358615354,1745312007731,-500.0,0.0005589,120]
[358615355,1745312007773,-500.0,0.0005589,120]
[358615356,1745312007821,-500.0,0.0005589,120]
[358615357,1745312007864,-275.01310086,0.0005589,120]
[358615358,1745312007910,-500.0,0.0005589,120]
[358615359,1745312007955,-500.0,0.0005589,120]
[358615360,1745312008002,-308.51485921,0.0005589,120]
[358615361,1745312008048,-524.35,0.0005589,120]
[358615362,1745312008092,-500.0,0.0005589,120]
[358615363,1745312008136,-500.0,0.0005589,120]
[358615364,1745312008178,-500.0,0.0005589,120]
[358615365,1745312008218,-500.0,0.0005589,120]
[358615366,1745312008258,-599.62617784,0.0005589,120]
[358615367,1745312008478,-500.0,0.0005589,120]
[358615368,1745312008516,-500.0,0.0005589,120]
[358615369,1745312008551,-500.0,0.0005589,120]
[358615370,1745312008586,-795.78,0.0005589,120]
[358615371,1745312008622,-500.0,0.0005589,120]
[358615372,1745312008656,-500.0,0.0005589,120]
[358615373,1745312008689,-500.0,0.0005589,120]
[358615374,1745312008721,-500.0,0.0005589,120]
[358615375,1745312008754,-500.0,0.0005589,120]
[358615376,1745312008786,-500.0,0.0005589,120]
[358615377,1745312008822,-904.36,0.0005589,120]
[358615378,1745312008856,-1191.65,0.0005589,120]
[358615379,1745312008894,-500.0,0.0005589,120]
[358615380,1745312008927,-605.29,0.0005589,120]
[358615381,1745312008962,-500.0,0.0005589,120]
[358615382,1745312008998,-999.0,0.0005589,120]
[358615383,1745312009035,-500.0,0.0005589,120]
[358615384,1745312009075,-500.0,0.0005589,120]
[358615385,1745312009111,-500.0,0.0005589,120]
[358615386,1745312009146,-500.0,0.0005589,120]
[358615387,1745312009180,-151.0,0.0005589,120]
[358615388,1745312009214,-500.0,0.0005589,60]
[358615389,1745312009249,-523.03,0.0005589,120]
[358615390,1745312009284,-151.0,0.0005589,120]
[358615391,1745312009317,-500.0,0.0005589,120]
[358615392,1745312009351,-500.0,0.0005589,120]
[358615393,1745312009385,-500.0,0.0005589,120]
[358615394,1745312009418,-500.0,0.0005589,120]
[358615395,1745312009452,-500.0,0.0005589,120]
[358615396,1745312009485,-500.0,0.0005589,120]
[358615397,1745312009517,-500.0,0.0005589,120]
[358615398,1745312009550,-500.0,0.0005589,120]
[358615399,1745312009582,-210.56027769,0.0005589,120]
[358615400,1745312009614,-500.0,0.0005589,120]
[358615401,1745312009646,-500.0,0.0005589,56]
[358615402,1745312009678,-500.0,0.0005589,120]
[358615403,1745312009710,-83185.02,0.0005589,120]
[358615404,1745312009743,-500.0,0.0005589,120]
[358615405,1745312009776,-200.0,0.00055891,30]
[358615406,1745312009810,-273.21047026,0.00055895,120]
[358615407,1745312009841,-600.0,0.00055899,120]
[358615408,1745312009873,-150.0,0.000559,120]
[358615409,1745312009906,-1240.7686931,0.000559,120]
[358615410,1745312009941,-150.0,0.00055905,120]
[358615411,1745312009976,-150.0,0.00055926,120]
[358615412,1745312010012,-273.21047026,0.00055927,120]
[358615413,1745312010048,-150.0,0.00055948,120]
[358615414,1745312010082,-150.0,0.00055948,120]
[358615415,1745312010116,-150.0,0.00055954,120]
[358615416,1745312010150,-273.21047026,0.0005596,120]
[358615417,1745312010184,-200.257464,0.00055962,120]
[358615418,1745312010218,-2100.0,0.00055969,120]
[358615419,1745312010251,-500.0,0.00055987,120]
[358615420,1745312010286,-2100.0,0.00055989,120]
[358615421,1745312010319,-150.0,0.00055991,120]
[358615422,1745312010353,-273.21047026,0.00055992,120]
[358615423,1745312010388,-50000.0,0.00056,56]
[358615424,1745312010423,-700.0,0.00056,120]
[358615425,1745312010455,-102865.20068749,0.00056,120]
[358615426,1745312010490,-18397.45984073,0.00056,120]
[358615427,1745312012347,-528.13185373,0.0002,4]
[358615428,1745312012631,-151.0,0.000545,120]
[358615429,1745312012667,-151.0,0.000545,120]
[358615430,1745312012702,-151.0,0.000545,120]
[358615431,1745312012736,-210.234728,0.000545,120]
[358615432,1745312012772,-151.0,0.000545,120]
[358615433,1745312012807,-151.0,0.000545,120]
[358615434,1745312012844,-151.0,0.000545,120]
[358615435,1745312012880,-151.0,0.000545,120]
[358615436,1745312012914,-278.489121,0.000545,120]
[358615437,1745312012949,-151.0,0.000545,120]
[358615438,1745312012985,-151.0,0.000545,120]
[358615439,1745312013021,-151.0,0.000545,120]
[358615440,1745312013058,-151.0,0.000545,120]
[358615441,1745312013095,-151.0,0.000545,120]
[358615442,1745312013135,-500.0,0.00054794,120]
[358615443,1745312013174,-500.0,0.00054794,120]
[358615444,1745312013213,-151.0,0.00054794,120]
[358615445,1745312013250,-151.0,0.00055,120]
[358615446,1745312013289,-373.70832404,0.00055068,120]
[358615447,1745312013328,-500.0,0.00055068,120]
[358615448,1745312013366,-500.0,0.00055342,120]
[358615449,1745312013408,-500.0,0.00055616,120]
[358615450,1745312013446,-151.0,0.00055616,120]
[358615451,1745312013485,-500.0,0.0005589,120]
[358615452,1745312013523,-500.0,0.0005589,120]
[358615453,1745312013561,-33580.54175661,0.00056,120]
[358615454,1745312013600,-151.0,0.00056,120]
[358615455,1745312013639,-151.0,0.00056,120]
[358615456,1745312013678,-2637.987686,0.00056,120]
[358615457,1745312013717,-2637.987686,0.00056,120]
[358615458,1745312013757,-611.122299,0.00056,120]
[358615459,1745312013799,-611.122299,0.00056,120]
[358615460,1745312013838,-151.0,0.00056,120]
[358615461,1745312013877,-150.0,0.0005601,120]
[358615462,1745312013916,-150.0,0.00056012,120]
[358615463,1745312013953,-150.0,0.0005602,120]
[358615464,1745312013992,-150.0,0.00056022,120]
[358615465,1745312014032,-273.21047026,0.00056025,120]
[358615466,1745312014070,-150.0,0.00056034,120]
[358615467,1745312014110,-273.21047026,0.00056057,120]
[358615468,1745312014149,-150.0,0.00056076,120]
[358615469,1745312014186,-150.0,0.00056076,120]
[358615470,1745312014223,-273.21047026,0.00056089,120]
[358615471,1745312014260,-150.0,0.0005609,120]
[358615472,1745312014297,-151.0,0.0005609,120]
[358615473,1745312014338,-600.0,0.00056094,120]
[358615474,1745312014374,-226.82,0.000561,60]
[358615475,1745312014412,-150.0,0.00056114,120]
[358615476,1745312014448,-150.0,0.00056119,120]
[358615477,1745312014485,-150.0,0.00056121,120]
[358615478,1745312014519,-273.21047026,0.00056122,120]
[358615479,1745312014555,-150.0,0.0005614,120]
[358615480,1745312014589,-273.21047026,0.00056154,120]